fUSD/lending_fUSD_20240216
["ID","MTS","AMOUNT","RATE_DAILY","PERIOD"]
[314236806,1708114248662,-500.0,0.000438,2]
[314236807,1708114248671,-152.60143086,0.00043825,21]
[314236808,1708114248680,-633.68495196,0.0004384,37]
[314236809,1708114248689,-689.264445,0.00043893,30]
[314236810,1708114248698,-321.846862,0.00043893,30]
[314236811,1708114248707,-689.264445,0.00043893,30]
[314236812,1708114248716,-289.262272,0.00043893,30]
[314236813,1708114248725,-391.303951,0.00043893,30]
[314236814,1708114248735,-195.651975,0.00043893,30]
[314236815,1708114248744,-777.0,0.000439,15]
[314236816,1708114248753,-13671.32128414,0.000439,2]
[314236817,1708114248762,-150.0,0.00043999,60]
[314236818,1708114248771,-100000.0,0.00044,24]
[314236819,1708114248781,-9406.14568972,0.00044,2]
[314236820,1708114248791,-625.13339368,0.00044,4]
[314236821,1708114248801,-7284.07152366,0.00044,8]
[314236822,1708114248810,-157.0,0.00044,90]
[314236823,1708114248820,-205.0,0.00044,21]
[314236824,1708114248831,-173.803498,0.00044073,30]
[314236825,1708114248841,-242.0,0.00044075,7]
[314236826,1708114248851,-5127.69152407,0.00044081,19]
[314236827,1708114248860,-11788.28830914,0.0004413,6]
[314236828,1708114248872,-152.60143086,0.00044155,22]
[314236829,1708114248882,-2000.0,0.00044322,120]
[314236830,1708114248891,-2000.0,0.00044322,120]
[314236831,1708114248900,-689.264445,0.00044434,30]
[314236832,1708114248909,-321.846862,0.00044434,30]
[314236833,1708114248920,-689.264445,0.00044434,30]
[314236834,1708114248929,-289.262272,0.00044434,30]
[314236835,1708114248939,-391.303951,0.00044434,30]
[314236836,1708114248948,-195.651975,0.00044434,30]
[314236837,1708114248958,-152.60143086,0.00044485,23]
[314236838,1708114248967,-221.31951587,0.00044526,30]
[314236839,1708114248976,-379.0,0.00044623,7]
[314236840,1708114248985,-3000.0,0.00044633,2]
[314236841,1708114248994,-151.25,0.00044749,2]
[314236842,1708114249003,-173.803498,0.00044796,30]
[314236843,1708114249013,-152.60143086,0.00044815,24]
[314236844,1708114249022,-388.51,0.000449,7]
[314236845,1708114249031,-777.0,0.000449,15]
[314236846,1708114249041,-5127.69152407,0.000449,20]
[314236847,1708114249051,-2525.6,0.00044931,105]
[314236848,1708114249060,-150.0,0.00044957,2]
[314236849,1708114249070,-150.0,0.00044957,2]
[314236850,1708114249079,-150.0,0.00044957,2]
[314236851,1708114249088,-150.0,0.00044957,2]
[314236852,1708114249097,-150.0,0.00044957,2]
[314236853,1708114249106,-150.0,0.00044957,2]
[314236854,1708114249117,-1865.0,0.00044957,2]
[314236855,1708114249126,-1281.755,0.00044957,2]
[314236856,1708114249135,-842.0,0.00044957,2]
[314236857,1708114249144,-532.0,0.00044957,2]
[314236858,1708114249154,-953.0,0.00044957,2]
[314236859,1708114249163,-708.0,0.00044957,2]
[314236860,1708114249173,-1254.0,0.00044957,2]
[314236861,1708114249183,-1949.0,0.00044957,2]
[314236862,1708114249192,-216.0,0.00044957,2]
[314236863,1708114249201,-1231.0,0.00044957,2]
[314236864,1708114249210,-689.264445,0.00044976,30]
[314236865,1708114249219,-321.846862,0.00044976,30]
[314236866,1708114249229,-689.264445,0.00044976,30]
[314236867,1708114249238,-289.262272,0.00044976,30]
[314236868,1708114249247,-391.303951,0.00044976,30]
[314236869,1708114249256,-195.651975,0.00044976,30]
[314236870,1708114249265,-100000.0,0.00045,35]
[314236871,1708114249274,-404.90396778,0.00045,4]
[314236872,1708114249284,-610.23449421,0.00045,30]
[314236873,1708114249293,-215.79600747,0.00045,10]
[314236874,1708114249302,-345.0,0.00045,7]
[314236875,1708114249312,-605.1135721,0.00045,2]
[314236876,1708114249321,-81152.83994067,0.00045,10]
[314236877,1708114249330,-152.0,0.00045073,4]
[314236878,1708114249340,-152.60143086,0.00045145,26]
[314236879,1708114249349,-502.59,0.00045149,2]
[314236880,1708114249358,-379.0,0.00045171,7]
[314236881,1708114249369,-2631.90009545,0.00045186,5]
[314236882,1708114249379,-217.07,0.000452,7]
[314236883,1708114249388,-393.57,0.000452,7]
[314236884,1708114249397,-556.57,0.000452,5]
[314236885,1708114249406,-556.57,0.000452,5]
[314236886,1708114249415,-556.57,0.000452,5]
[314236887,1708114249425,-556.57,0.000452,5]
[314236888,1708114249435,-556.57,0.000452,5]
[314236889,1708114249445,-556.57,0.000452,5]
[314236890,1708114249454,-556.57,0.000452,5]
[314236891,1708114249463,-556.57,0.000452,5]
[314236892,1708114249473,-556.57,0.000452,5]
[314236893,1708114249482,-556.57,0.000452,5]
[314236894,1708114249492,-556.57,0.000452,5]
[314236895,1708114249506,-556.57,0.000452,5]
[314236896,1708114249515,-556.57,0.000452,5]
[314236897,1708114249524,-556.57,0.000452,5]
[314236898,1708114249534,-556.57,0.000452,5]
[314236899,1708114249543,-556.57,0.000452,5]
[314236900,1708114249554,-556.57,0.000452,5]
[314236901,1708114249563,-556.57,0.000452,5]
[314236902,1708114249573,-556.57,0.000452,5]
[314236903,1708114249583,-556.57,0.000452,5]
[314236904,1708114249593,-182.1,0.00045205,2]
[314236905,1708114249601,-411.76,0.00045205,2]
[314236906,1708114249610,-221.31951587,0.00045239,30]
[314236907,1708114249620,-930.54,0.0004525,2]
[314236908,1708114249629,-1220.56,0.000453,30]
[314236909,1708114249639,-205.0,0.00045333,24]
[314236910,1708114249649,-387.06,0.000454,2]
[314236911,1708114249658,-155.08,0.00045437,2]
[314236912,1708114249669,-152.60143086,0.00045475,27]
[314236913,1708114249678,-1220.56,0.000455,30]
[314236914,1708114249687,-689.264445,0.00045518,30]
[314236915,1708114249697,-321.846862,0.00045518,30]
[314236916,1708114249706,-689.264445,0.00045518,30]
[314236917,1708114249716,-289.262272,0.00045518,30]
[314236918,1708114249725,-391.303951,0.00045518,30]
[314236919,1708114249734,-195.651975,0.00045518,30]
[314236920,1708114249743,-173.803498,0.00045518,30]
[314236921,1708114249753,-175.935141,0.00045518,30]
[314236922,1708114249763,-200.158958,0.00045518,30]
[314236923,1708114249773,-203.653691,0.00045518,30]
[314236924,1708114249782,-151.0,0.0004553,2]
[314236925,1708114249791,-379.0,0.00045719,30]
[314236926,1708114249800,-360.0,0.00045728,2]
[314236927,1708114249810,-152.60143086,0.00045806,28]
[314236928,1708114249819,-859.72,0.00045828,15]
[314236929,1708114249829,-50000.0,0.00045838,30]
[314236930,1708114249838,-633.68495196,0.0004587,40]
[314236931,1708114249847,-777.0,0.000459,30]
[314236932,1708114249856,-177.883,0.00045974,2]
[314236933,1708114249866,-429.0,0.00045974,2]
[314236934,1708114249876,-387.0,0.00045974,2]
[314236935,1708114249885,-858.0,0.00045974,2]
[314236936,1708114249895,-343.0,0.00045974,2]
[314236937,1708114249904,-321.0,0.00045974,2]
[314236938,1708114249913,-2871.0,0.00045974,2]
[314236939,1708114249924,-150.0,0.00045974,2]
[314236940,1708114249934,-1138.0,0.00045974,2]
[314236941,1708114249944,-454.0,0.00045974,2]
[314236942,1708114249953,-19846.0,0.00045974,2]
[314236943,1708114249962,-2706.277,0.00045974,2]
[314236944,1708114249972,-5628.0,0.00045974,2]
[314236945,1708114249983,-462.069,0.00045974,2]
[314236946,1708114249992,-4098.0,0.00045974,2]
[314236947,1708114250002,-1035.069,0.00045974,2]
[314236948,1708114250012,-100000.0,0.00046,36]
[314236949,1708114250021,-6204.60524419,0.00046,30]
[314236950,1708114250030,-151.25,0.00046027,2]
[314236951,1708114250040,-11788.28830914,0.00046053,7]
[314236952,1708114250050,-221.31951587,0.0004606,30]
[314236953,1708114250059,-152.60143086,0.00046136,29]
[314236954,1708114250069,-379.0,0.00046267,30]
[314236955,1708114250078,-302.0,0.00046295,4]
[314236956,1708114250087,-152.60143086,0.00046466,31]
[314236957,1708114250097,-1000.0,0.000465,2]
[314236958,1708114250105,-5000.0,0.00046575,30]
[314236959,1708114250115,-1000.0,0.00046575,30]
[314236960,1708114250124,-1855.07391221,0.000466,2]
[314236961,1708114250134,-1000.0,0.000466,2]
[314236962,1708114250143,-1991.0,0.000466,2]
[314236963,1708114250152,-500.0,0.000466,2]
[314236964,1708114250162,-1000.0,0.00046657,30]
[314236965,1708114250171,-205.0,0.00046667,27]
[314236966,1708114250180,-640.0,0.00046688,2]
[314236967,1708114250190,-1000.0,0.00046704,30]
[314236968,1708114250200,-221.31951587,0.00046736,30]
[314236969,1708114250210,-10191.44,0.00046737,2]
[314236970,1708114250220,-1078.16,0.00046737,2]
[314236971,1708114250229,-1871.03,0.00046737,2]
[314236972,1708114250239,-15791.89,0.00046737,2]
[314236973,1708114250248,-183970.97317512,0.0004674,8]
[314236974,1708114250257,-189.48792115,0.0004674,2]
[314236975,1708114250267,-2631.90009545,0.00046765,5]
[314236976,1708114250277,-152.60143086,0.00046796,32]
[314236977,1708114250286,-393.57,0.000468,7]
[314236978,1708114250296,-379.0,0.00046815,30]
[314236979,1708114250305,-1000.0,0.0004683,30]
[314236980,1708114250314,-5000.0,0.00046849,33]
[314236981,1708114250323,-1000.0,0.00046849,33]
[314236982,1708114250333,-777.0,0.000469,30]
[314236983,1708114250342,-500.0,0.00046965,4]
[314236984,1708114250351,-500.0,0.00046974,4]
[314236985,1708114250361,-500.0,0.00046982,4]
[314236986,1708114250371,-500.0,0.00046991,4]
[314236987,1708114250381,-100000.0,0.00047,37]
[314236988,1708114250390,-217.07,0.00047,7]
[314236989,1708114250399,-500.0,0.00047,4]
[314236990,1708114250409,-604.0,0.00047074,7]
[314236991,1708114250419,-388.51,0.000471,7]
[314236992,1708114250428,-221.31951587,0.00047121,30]
[314236993,1708114250437,-5000.0,0.00047123,36]
[314236994,1708114250447,-152.60143086,0.00047126,33]
[314236995,1708114250456,-221.31951587,0.00047207,30]
[314236996,1708114250465,-151.25,0.00047306,2]
[314236997,1708114250475,-379.0,0.00047363,30]
[314236998,1708114250484,-1541.91820355,0.00047397,39]
[314236999,1708114250498,-556.57,0.000474,5]
[314237000,1708114250508,-556.57,0.000474,5]
[314237001,1708114250517,-556.57,0.000474,5]
[314237002,1708114250527,-556.57,0.000474,5]
[314237003,1708114250538,-556.57,0.000474,5]
[314237004,1708114250548,-556.57,0.000474,5]
[314237005,1708114250558,-556.57,0.000474,5]
[314237006,1708114250567,-556.57,0.000474,5]
[314237007,1708114250579,-556.57,0.000474,5]
[314237008,1708114250589,-556.57,0.000474,5]
[314237009,1708114250599,-556.57,0.000474,5]
[314237010,1708114250610,-556.57,0.000474,5]
[314237011,1708114250621,-556.57,0.000474,5]
[314237012,1708114250772,-556.57,0.000474,5]
[314237013,1708114250783,-556.57,0.000474,5]
[314237014,1708114250793,-556.57,0.000474,5]
[314237015,1708114250804,-556.57,0.000474,5]
[314237016,1708114250814,-556.57,0.000474,5]
[314237017,1708114250824,-556.57,0.000474,5]
[314237018,1708114250834,-556.57,0.000474,5]
[314237019,1708114250843,-152.60143086,0.00047457,34]
[314237020,1708114250854,-150.0,0.000475,120]
[314237021,1708114250864,-930.54,0.00047513,2]
[314237022,1708114250874,-3623.81,0.00047672,5]
[314237023,1708114250884,-221.31951587,0.00047744,30]
[314237024,1708114250894,-200.0,0.00047777,33]
[314237025,1708114250903,-200.0,0.00047777,31]
[314237026,1708114250914,-152.60143086,0.00047787,36]
[314237027,1708114250925,-393.57,0.000478,7]
[314237028,1708114250934,-777.0,0.000479,120]
[314237029,1708114250945,-633.68495196,0.000479,43]
[314237030,1708114250957,-379.0,0.00047911,30]
[314237031,1708114250966,-150.0,0.00047957,2]
[314237032,1708114250976,-1094.933,0.00047957,2]
[314237033,1708114250986,-842.0,0.00047957,2]
[314237034,1708114250996,-441.645,0.00047957,2]
[314237035,1708114251005,-953.0,0.00047957,2]
[314237036,1708114251015,-708.0,0.00047957,2]
[314237037,1708114251025,-1254.0,0.00047957,2]
[314237038,1708114251034,-1949.0,0.00047957,2]
[314237039,1708114251044,-1231.0,0.00047957,2]
[314237040,1708114251053,-11788.28830914,0.00047977,9]
[314237041,1708114251063,-100000.0,0.00048,38]
[314237042,1708114251072,-10000.0,0.00048,10]
[314237043,1708114251081,-205.0,0.00048,31]
[314237044,1708114251091,-152.60143086,0.00048117,37]
[314237045,1708114251100,-2755.2,0.00048161,117]
[314237046,1708114251110,-1208.0,0.00048265,30]
[314237047,1708114251121,-2631.90009545,0.00048344,5]
[314237048,1708114251130,-200.0,0.00048398,47]
[314237049,1708114251140,-1000.0,0.00048425,30]
[314237050,1708114251149,-152.60143086,0.00048447,38]
[314237051,1708114251159,-1000.0,0.00048448,30]
[314237052,1708114251168,-379.0,0.00048459,30]
[314237053,1708114251178,-422.25,0.00048493,2]
[314237054,1708114251188,-150.0,0.00048493,2]
[314237055,1708114251197,-412.02,0.00048493,2]
[314237056,1708114251206,-412.02,0.00048493,2]
[314237057,1708114251217,-412.02,0.00048493,2]
[314237058,1708114251226,-412.02,0.00048493,2]
[314237059,1708114251236,-412.02,0.00048493,2]
[314237060,1708114251246,-412.02,0.00048493,2]
[314237061,1708114251256,-412.02,0.00048493,2]
[314237062,1708114251265,-304.7,0.00048493,2]
[314237063,1708114251275,-1000.0,0.00048496,30]
[314237064,1708114251285,-221.31951587,0.00048526,30]
[314237065,1708114251295,-152.0,0.0004853,5]
[314237066,1708114251304,-1000.0,0.00048558,30]
[314237067,1708114251314,-1000.0,0.00048566,30]
[314237068,1708114251323,-151.25,0.00048585,2]
[314237069,1708114251332,-4668.15327792,0.00048751,2]
[314237070,1708114251342,-152.60143086,0.00048777,40]
[314237071,1708114251352,-554.0,0.000489,120]
[314237072,1708114251361,-221.31951587,0.00048921,30]
[314237073,1708114251372,-221.31951587,0.00048949,30]
[314237074,1708114251383,-315.577,0.00048974,2]
[314237075,1708114251394,-527.021,0.00048974,2]
[314237076,1708114251404,-163.483,0.00048974,2]
[314237077,1708114251414,-2871.0,0.00048974,2]
[314237078,1708114251424,-454.0,0.00048974,2]
[314237079,1708114251434,-15298.05,0.00048974,2]
[314237080,1708114251443,-1445.603,0.00048974,2]
[314237081,1708114251453,-4098.0,0.00048974,2]
[314237082,1708114251463,-100000.0,0.00049,39]
[314237083,1708114251473,-4142.0,0.00049,14]
[314237084,1708114251484,-49861.0,0.00049,120]
[314237085,1708114251493,-20000.0,0.00049,120]
[314237086,1708114251504,-1000.0,0.00049,2]
[314237087,1708114251514,-68632.8439739,0.00049,30]
[314237088,1708114251524,-70000.0,0.00049,120]
[314237089,1708114251533,-22104.31,0.00049,90]
[314237090,1708114251544,-6750.88,0.00049,90]
[314237091,1708114251553,-6000.0,0.00049,90]
[314237092,1708114251563,-2212.71,0.00049,90]
[314237093,1708114251572,-13916.79,0.00049,90]
[314237094,1708114251583,-5600.0,0.00049,30]
[314237095,1708114251593,-10000.0,0.00049,120]
[314237096,1708114251602,-10000.0,0.00049,120]
[314237097,1708114251612,-7642.0,0.00049,30]
[314237098,1708114251622,-221.31951587,0.00049005,30]
[314237099,1708114251632,-379.0,0.00049007,30]
[314237100,1708114251642,-1327.623976,0.000491,23]
[314237101,1708114251652,-152.60143086,0.00049108,41]
[314237102,1708114251662,-1000.0,0.0004912,23]
[314237103,1708114251672,-1000.0,0.0004914,23]
[314237104,1708114251682,-1000.0,0.0004916,23]
[314237105,1708114251694,-1000.0,0.0004918,23]
[314237106,1708114251704,-1000.0,0.000492,23]
[314237107,1708114251715,-1000.0,0.0004922,23]
[314237108,1708114251727,-169.24,0.00049239,2]
[314237109,1708114251737,-1000.0,0.0004924,23]
[314237110,1708114251759,-1425.096121,0.0004924,23]
[314237111,1708114251779,-1000.0,0.0004926,23]
[314237112,1708114251798,-1000.0,0.0004926,23]
[314237113,1708114251819,-1000.0,0.0004928,23]
[314237114,1708114251836,-1000.0,0.0004928,23]
[314237115,1708114251856,-1209.87977454,0.0004928,60]
[314237116,1708114251875,-45047.9590378,0.00049281,2]
[314237117,1708114251892,-10023.7702283,0.00049281,2]
[314237118,1708114251911,-4543.9988833,0.00049281,2]
[314237119,1708114251928,-15338.4070634,0.00049281,2]
[314237120,1708114251948,-1000.0,0.000493,2]
[314237121,1708114251971,-3000.0,0.000493,78]
[314237122,1708114251983,-702.4176784,0.000493,20]
[314237123,1708114252000,-200.0,0.000493,2]
[314237124,1708114252017,-170.696341,0.000493,2]
[314237125,1708114252030,-1000.0,0.000493,23]
[314237126,1708114252045,-1000.0,0.000493,23]
[314237127,1708114252059,-307.0,0.000493,2]
[314237128,1708114252073,-70139.41073342,0.00049304,2]
[314237129,1708114252088,-3000.0,0.0004931,78]
[314237130,1708114252103,-5187.785896,0.00049315,30]
[314237131,1708114252118,-2934.096365,0.00049315,30]
[314237132,1708114252133,-703.73,0.00049315,2]
[314237133,1708114252147,-1124.61,0.00049315,7]
[314237134,1708114252161,-500.0,0.00049315,60]
[314237135,1708114252176,-500.0,0.00049315,60]
[314237136,1708114252191,-500.0,0.00049315,60]
[314237137,1708114252205,-500.0,0.00049315,60]
[314237138,1708114252220,-500.0,0.00049315,60]
[314237139,1708114252234,-500.0,0.00049315,60]
[314237140,1708114252249,-500.0,0.00049315,60]
[314237141,1708114252266,-290.0,0.00049315,30]
[314237142,1708114252280,-500.0,0.00049315,60]
[314237143,1708114252296,-542.33528651,0.00049315,60]
[314237144,1708114252311,-500.0,0.00049315,60]
[314237145,1708114252326,-500.0,0.00049315,60]
[314237146,1708114252340,-500.0,0.00049315,60]
[314237147,1708114252354,-500.0,0.00049315,60]
[314237148,1708114252369,-500.0,0.00049315,60]
[314237149,1708114252383,-500.0,0.00049315,60]
[314237150,1708114252398,-230.33176721,0.00049315,60]
[314237151,1708114252412,-500.0,0.00049315,60]
[314237152,1708114252427,-500.0,0.00049315,60]
[314237153,1708114252441,-500.0,0.00049315,60]
[314237154,1708114252456,-500.0,0.00049315,60]
[314237155,1708114252472,-500.0,0.00049315,60]
[314237156,1708114252487,-527.90689567,0.00049315,60]
[314237157,1708114252505,-500.0,0.00049315,60]
[314237158,1708114252520,-500.0,0.00049315,60]
[314237159,1708114252536,-500.0,0.00049315,60]
[314237160,1708114252551,-500.0,0.00049315,60]
[314237161,1708114252564,-500.0,0.00049315,60]
[314237162,1708114252580,-500.0,0.00049315,60]
[314237163,1708114252595,-500.0,0.00049315,60]
[314237164,1708114252609,-500.0,0.00049315,60]
[314237165,1708114252623,-500.0,0.00049315,60]
[314237166,1708114252637,-500.0,0.00049315,60]
[314237167,1708114252652,-500.0,0.00049315,60]
[314237168,1708114252667,-500.0,0.00049315,60]
[314237169,1708114252681,-500.0,0.00049315,60]
[314237170,1708114252694,-500.0,0.00049315,60]
[314237171,1708114252708,-500.0,0.00049315,60]
[314237172,1708114252723,-500.0,0.00049315,60]
[314237173,1708114252739,-500.0,0.00049315,60]
[314237174,1708114252753,-250.0,0.00049315,60]
[314237175,1708114252768,-500.0,0.00049315,60]
[314237176,1708114252783,-500.0,0.00049315,60]
[314237177,1708114252798,-500.0,0.00049315,60]
[314237178,1708114252812,-500.0,0.00049315,60]
[314237179,1708114252827,-500.0,0.00049315,60]
[314237180,1708114252843,-500.0,0.00049315,60]
[314237181,1708114252858,-500.0,0.00049315,60]
[314237182,1708114252872,-500.0,0.00049315,60]
[314237183,1708114252887,-500.0,0.00049315,60]
[314237184,1708114252902,-500.0,0.00049315,60]
[314237185,1708114252916,-500.0,0.00049315,60]
[314237186,1708114252932,-500.0,0.00049315,60]
[314237187,1708114252947,-500.0,0.00049315,60]
[314237188,1708114252962,-500.0,0.00049315,60]
[314237189,1708114252977,-500.0,0.00049315,60]
[314237190,1708114252992,-500.0,0.00049315,60]
[314237191,1708114253006,-500.0,0.00049315,60]
[314237192,1708114253022,-500.0,0.00049315,60]
[314237193,1708114253036,-500.0,0.00049315,60]
[314237194,1708114253051,-500.0,0.00049315,60]
[314237195,1708114253065,-500.0,0.00049315,60]
[314237196,1708114253079,-500.0,0.00049315,60]
[314237197,1708114253093,-500.0,0.00049315,60]
[314237198,1708114253109,-500.0,0.00049315,60]
[314237199,1708114253122,-500.0,0.00049315,60]
[314237200,1708114253131,-500.0,0.00049315,60]
[314237201,1708114253141,-629.58912136,0.00049315,60]
[314237202,1708114253151,-500.0,0.00049315,60]
[314237203,1708114253161,-511.86968566,0.00049315,60]
[314237204,1708114253170,-500.0,0.00049315,60]
[314237205,1708114253179,-500.0,0.00049315,60]
[314237206,1708114253189,-425.98752575,0.00049315,60]
[314237207,1708114253454,-500.0,0.00049315,60]
[314237208,1708114253472,-508.11987439,0.00049315,60]
[314237209,1708114253501,-500.0,0.00049315,60]
[314237210,1708114253510,-500.0,0.00049315,60]
[314237211,1708114253519,-500.0,0.00049315,60]
[314237212,1708114253528,-500.0,0.00049315,60]
[314237213,1708114253538,-500.0,0.00049315,60]
[314237214,1708114253548,-500.0,0.00049315,60]
[314237215,1708114253557,-490.28411376,0.00049315,60]
[314237216,1708114253566,-523.01111786,0.00049315,60]
[314237217,1708114253579,-500.0,0.00049315,7]
[314237218,1708114253588,-500.0,0.00049315,60]
[314237219,1708114253597,-500.0,0.00049315,60]
[314237220,1708114253606,-526.65988091,0.00049315,60]
[314237221,1708114253615,-500.0,0.00049315,60]
[314237222,1708114253625,-500.0,0.00049315,60]
[314237223,1708114253634,-500.0,0.00049315,30]
[314237224,1708114253643,-500.0,0.00049315,60]
[314237225,1708114253651,-500.0,0.00049315,60]
[314237226,1708114253661,-647.21352738,0.00049315,60]
[314237227,1708114253670,-600.0,0.00049315,60]
[314237228,1708114253679,-500.0,0.00049315,60]
[314237229,1708114253689,-500.0,0.00049315,60]
[314237230,1708114253698,-500.0,0.00049315,60]
[314237231,1708114253708,-500.0,0.00049315,60]
[314237232,1708114253717,-266.67863648,0.00049315,60]
[314237233,1708114253727,-500.0,0.00049315,60]
[314237234,1708114253737,-500.0,0.00049315,60]
[314237235,1708114253746,-503.23935169,0.00049315,2]
[314237236,1708114253755,-500.0,0.00049315,60]
[314237237,1708114253765,-499.17564902,0.00049315,60]
[314237238,1708114253774,-500.0,0.00049315,60]
[314237239,1708114253784,-500.0,0.00049315,60]
[314237240,1708114253793,-394.9537155,0.00049315,60]
[314237241,1708114253802,-576.08,0.00049315,60]
[314237242,1708114253812,-500.0,0.00049315,60]
[314237243,1708114253821,-500.0,0.00049315,60]
[314237244,1708114253830,-500.0,0.00049315,60]
[314237245,1708114253839,-500.0,0.00049315,60]
[314237246,1708114253848,-500.0,0.00049315,60]
[314237247,1708114253858,-371.85552083,0.00049315,60]
[314237248,1708114253868,-500.0,0.00049315,60]
[314237249,1708114253878,-500.0,0.00049315,60]
[314237250,1708114253887,-500.0,0.00049315,60]
[314237251,1708114253897,-500.0,0.00049315,60]
[314237252,1708114253907,-500.0,0.00049315,60]
[314237253,1708114253917,-500.0,0.00049315,60]
[314237254,1708114253928,-500.0,0.00049315,60]
[314237255,1708114253937,-500.0,0.00049315,60]
[314237256,1708114253947,-500.0,0.00049315,60]
[314237257,1708114253955,-500.0,0.00049315,60]
[314237258,1708114253965,-500.0,0.00049315,60]
[314237259,1708114253974,-500.0,0.00049315,60]
[314237260,1708114253983,-500.0,0.00049315,60]
[314237261,1708114253992,-307.84533531,0.00049315,60]
[314237262,1708114254002,-500.0,0.00049315,60]
[314237263,1708114254012,-500.0,0.00049315,60]
[314237264,1708114254021,-500.0,0.00049315,60]
[314237265,1708114254030,-500.0,0.00049315,60]
[314237266,1708114254040,-500.0,0.00049315,60]
[314237267,1708114254049,-500.0,0.00049315,60]
[314237268,1708114254058,-513.69766453,0.00049315,60]
[314237269,1708114254067,-500.0,0.00049315,60]
[314237270,1708114254077,-500.0,0.00049315,60]
[314237271,1708114254086,-500.0,0.00049315,60]
[314237272,1708114254095,-995.39,0.00049315,60]
[314237273,1708114254105,-500.0,0.00049315,60]
[314237274,1708114254114,-511.89443982,0.00049315,60]
[314237275,1708114254123,-500.0,0.00049315,60]
[314237276,1708114254133,-692.19,0.00049315,60]
[314237277,1708114254142,-500.0,0.00049315,60]
[314237278,1708114254151,-500.0,0.00049315,60]
[314237279,1708114254160,-1000.0,0.00049315,7]
[314237280,1708114254169,-500.0,0.00049315,60]
[314237281,1708114254178,-500.0,0.00049315,60]
[314237282,1708114254187,-500.0,0.00049315,60]
[314237283,1708114254197,-500.0,0.00049315,60]
[314237284,1708114254206,-500.0,0.00049315,60]
[314237285,1708114254215,-509.95743609,0.00049315,60]
[314237286,1708114254224,-500.0,0.00049315,60]
[314237287,1708114254233,-500.0,0.00049315,60]
[314237288,1708114254242,-500.0,0.00049315,60]
[314237289,1708114254251,-500.0,0.00049315,60]
[314237290,1708114254261,-500.0,0.00049315,60]
[314237291,1708114254270,-695.62,0.00049315,60]
[314237292,1708114254280,-332.70969571,0.00049315,60]
[314237293,1708114254289,-500.0,0.00049315,60]
[314237294,1708114254299,-531.0,0.00049315,60]
[314237295,1708114254309,-500.0,0.00049315,60]
[314237296,1708114254318,-500.0,0.00049315,60]
[314237297,1708114254328,-500.0,0.00049315,60]
[314237298,1708114254337,-500.0,0.00049315,60]
[314237299,1708114254347,-500.0,0.00049315,60]
[314237300,1708114254356,-500.0,0.00049315,60]
[314237301,1708114254365,-500.0,0.00049315,60]
[314237302,1708114254377,-500.0,0.00049315,60]
[314237303,1708114254387,-500.0,0.00049315,60]
[314237304,1708114254397,-500.0,0.00049315,60]
[314237305,1708114254406,-559.9,0.00049315,60]